[Event "Titled Tuesday Blitz February 07 Late 2023"]
[White "Javakhadze, Zurab"]
[Black "Przybylski, Wojciech"]
[WhiteFideId "13603647"]
[BlackFideId "1117599"]
[WhiteElo "2459"]
[BlackElo "2321"]
[Result "1-0"]
[Round "08"]
[TimeControl "180+2"]
[Date "2023.02.07"]
[WhiteClock "0:00:32"]
[BlackClock "0:00:01"]

1. g3 {[%clk 0:02:54]}  d5 {[%clk 0:02:59]} 2. Nf3 {[%clk 0:02:54]}  c6 {[%clk 0:03:00]} 3. Bg2 {[%clk 0:02:54]}  Bg4 {[%clk 0:02:59]} 4. O-O {[%clk 0:02:55]}  Nd7 {[%clk 0:02:59]} 5. d3 {[%clk 0:02:55]}  Ngf6 {[%clk 0:02:59]} 6. Nbd2 {[%clk 0:02:55]}  e6 {[%clk 0:03:00]} 7. e4 {[%clk 0:02:53]}  Bc5 {[%clk 0:02:54]} 8. Qe1 {[%clk 0:02:42]}  O-O {[%clk 0:02:52]} 9. h3 {[%clk 0:02:42]}  Bxf3 {[%clk 0:02:51]} 10. Nxf3 {[%clk 0:02:40]}  Qb6 {[%clk 0:02:45]} 11. e5 {[%clk 0:02:33]}  Ne8 {[%clk 0:02:44]} 12. c3 {[%clk 0:02:33]}  Be7 {[%clk 0:02:26]} 13. h4 {[%clk 0:02:31]}  h6 {[%clk 0:02:23]} 14. Qe2 {[%clk 0:02:23]}  Nc7 {[%clk 0:02:18]} 15. Be3 {[%clk 0:02:17]}  c5 {[%clk 0:02:16]} 16. b4 {[%clk 0:02:17]}  Qa6 {[%clk 0:02:06]} 17. Rab1 {[%clk 0:02:01]}  cxb4 {[%clk 0:01:55]} 18. cxb4 {[%clk 0:02:01]}  Nb5 {[%clk 0:01:55]} 19. Qb2 {[%clk 0:01:55]}  Rac8 {[%clk 0:01:51]} 20. Rfc1 {[%clk 0:01:48]}  Qa4 {[%clk 0:01:19]} 21. Rxc8 {[%clk 0:01:37]}  Rxc8 {[%clk 0:01:18]} 22. Rc1 {[%clk 0:01:38]}  Rc6 {[%clk 0:00:41]} 23. Rxc6 {[%clk 0:01:32]}  bxc6 {[%clk 0:00:40]} 24. Bd2 {[%clk 0:01:32]}  c5 {[%clk 0:00:34]} 25. bxc5 {[%clk 0:01:30]}  Bxc5 {[%clk 0:00:29]} 26. Bf1 {[%clk 0:01:28]}  d4 {[%clk 0:00:19]} 27. Be2 {[%clk 0:01:16]}  a6 {[%clk 0:00:19]} 28. g4 {[%clk 0:01:03]}  Nb6 {[%clk 0:00:19]} 29. g5 {[%clk 0:01:02]}  hxg5 {[%clk 0:00:18]} 30. Nxg5 {[%clk 0:01:00]}  Nd5 {[%clk 0:00:18]} 31. Bh5 {[%clk 0:00:51]}  g6 {[%clk 0:00:17]} 32. Bf3 {[%clk 0:00:51]}  Ba3 {[%clk 0:00:16]} 33. Qb1 {[%clk 0:00:47]}  Ndc3 {[%clk 0:00:15]} 34. Qe1 {[%clk 0:00:47]}  Qc2 {[%clk 0:00:13]} 35. h5 {[%clk 0:00:44]}  Qxd3 {[%clk 0:00:11]} 36. h6 {[%clk 0:00:35]}  Be7 {[%clk 0:00:10]} 37. Kg2 {[%clk 0:00:32]}  Bxg5 {[%clk 0:00:08]} 38. Bxg5 {[%clk 0:00:33]}  Qf5 {[%clk 0:00:05]} 39. h7+ {[%clk 0:00:32]}  Kxh7 {[%clk 0:00:03]} 40. Qh1+ {[%clk 0:00:32]}  Kg8 {[%clk 0:00:01]} 41. Bf6 {[%clk 0:00:32]} 1-0


[Site "https://www.chess.com"]

[Event "Titled Tuesday Blitz February 07 Late 2023"]
[White "Brilej, Jaka"]
[Black "Urazayev, Arystanbek"]
[WhiteFideId "14618818"]
[BlackFideId "13709810"]
[WhiteElo "2321"]
[BlackElo "2460"]
[Result "0-1"]
[Round "08"]
[TimeControl "180+2"]
[Date "2023.02.07"]
[WhiteClock "0:00:07"]
[BlackClock "0:00:43"]

1. e4 {[%clk 0:02:54]}  c5 {[%clk 0:02:59]} 2. Nf3 {[%clk 0:02:50]}  d6 {[%clk 0:03:00]} 3. d4 {[%clk 0:02:50]}  cxd4 {[%clk 0:03:01]} 4. Nxd4 {[%clk 0:02:51]}  Nf6 {[%clk 0:03:01]} 5. Nc3 {[%clk 0:02:51]}  Nc6 {[%clk 0:03:02]} 6. Bg5 {[%clk 0:02:49]}  e6 {[%clk 0:03:02]} 7. Qd2 {[%clk 0:02:38]}  a6 {[%clk 0:03:02]} 8. O-O-O {[%clk 0:02:37]}  Be7 {[%clk 0:03:02]} 9. f4 {[%clk 0:02:36]}  Bd7 {[%clk 0:03:02]} 10. Bxf6 {[%clk 0:02:31]}  Bxf6 {[%clk 0:02:58]} 11. Nxc6 {[%clk 0:02:31]}  Bxc6 {[%clk 0:02:58]} 12. Qe3 {[%clk 0:02:21]}  Qa5 {[%clk 0:02:57]} 13. Rxd6 {[%clk 0:02:17]}  Bxc3 {[%clk 0:02:56]} 14. Qxc3 {[%clk 0:02:18]}  Qxc3 {[%clk 0:02:55]} 15. bxc3 {[%clk 0:02:17]}  Bxe4 {[%clk 0:02:56]} 16. Rg1 {[%clk 0:02:13]}  Ke7 {[%clk 0:02:55]} 17. Rd4 {[%clk 0:02:13]}  Bd5 {[%clk 0:02:47]} 18. Kb2 {[%clk 0:02:10]}  Rhd8 {[%clk 0:02:42]} 19. g3 {[%clk 0:02:10]}  Rac8 {[%clk 0:02:22]} 20. Bg2 {[%clk 0:02:03]}  Bxg2 {[%clk 0:02:22]} 21. Rxg2 {[%clk 0:02:04]}  Rd7 {[%clk 0:02:21]} 22. Rgd2 {[%clk 0:02:03]}  Rdc7 {[%clk 0:02:21]} 23. R2d3 {[%clk 0:02:01]}  h5 {[%clk 0:02:21]} 24. Re4 {[%clk 0:01:55]}  Kf6 {[%clk 0:02:21]} 25. h3 {[%clk 0:01:52]}  Rc6 {[%clk 0:02:15]} 26. Red4 {[%clk 0:01:47]}  R8c7 {[%clk 0:02:14]} 27. Rd7 {[%clk 0:01:45]}  Kf5 {[%clk 0:02:02]} 28. R7d4 {[%clk 0:01:29]}  f6 {[%clk 0:02:01]} 29. Re3 {[%clk 0:01:27]}  Rb6+ {[%clk 0:01:53]} 30. Kc1 {[%clk 0:01:27]}  Rb5 {[%clk 0:01:48]} 31. a4 {[%clk 0:01:25]}  Rbc5 {[%clk 0:01:47]} 32. Kb2 {[%clk 0:01:25]}  Rc4 {[%clk 0:01:47]} 33. Kb3 {[%clk 0:01:25]}  R4c6 {[%clk 0:01:28]} 34. Rb4 {[%clk 0:01:24]}  Rd6 {[%clk 0:01:21]} 35. Rd4 {[%clk 0:01:22]}  Rcc6 {[%clk 0:01:17]} 36. Rb4 {[%clk 0:01:19]}  b6 {[%clk 0:01:11]} 37. Rd4 {[%clk 0:01:15]}  a5 {[%clk 0:01:03]} 38. Red3 {[%clk 0:00:46]}  Rxd4 {[%clk 0:01:02]} 39. cxd4 {[%clk 0:00:47]}  h4 {[%clk 0:01:03]} 40. gxh4 {[%clk 0:00:39]}  Kxf4 {[%clk 0:01:03]} 41. c4 {[%clk 0:00:36]}  e5 {[%clk 0:01:03]} 42. d5 {[%clk 0:00:36]}  Rd6 {[%clk 0:01:04]} 43. Kc3 {[%clk 0:00:30]}  e4 {[%clk 0:01:04]} 44. Rd1 {[%clk 0:00:30]}  f5 {[%clk 0:01:02]} 45. Kd4 {[%clk 0:00:30]}  g6 {[%clk 0:01:00]} 46. Rg1 {[%clk 0:00:28]}  Kf3 {[%clk 0:00:59]} 47. Ke5 {[%clk 0:00:24]}  Rd8 {[%clk 0:00:57]} 48. Rxg6 {[%clk 0:00:18]}  f4 {[%clk 0:00:49]} 49. h5 {[%clk 0:00:14]}  e3 {[%clk 0:00:49]} 50. Kf5 {[%clk 0:00:13]}  Rf8+ {[%clk 0:00:48]} 51. Kg5 {[%clk 0:00:11]}  Re8 {[%clk 0:00:44]} 52. Rf6 {[%clk 0:00:07]}  e2 {[%clk 0:00:41]} 53. Rxf4+ {[%clk 0:00:07]}  Kg3 {[%clk 0:00:42]} 54. Rg4+ {[%clk 0:00:07]}  Kh2 {[%clk 0:00:43]} 0-1


[Site "https://www.chess.com"]

[Event "Titled Tuesday Blitz February 07 Late 2023"]
[White "Harvey, Marcus R"]
[Black "Gurevich, Dmitry"]
[WhiteFideId "400092"]
[BlackFideId "2000407"]
[WhiteElo "2462"]
[BlackElo "2393"]
[Result "1-0"]
[Round "08"]
[TimeControl "180+2"]
[Date "2023.02.07"]
[WhiteClock "0:00:57"]
[BlackClock "0:00:01"]

1. d4 {[%clk 0:03:00]}  Nf6 {[%clk 0:02:59]} 2. c4 {[%clk 0:03:00]}  a6 {[%clk 0:02:58]} 3. g3 {[%clk 0:02:59]}  c5 {[%clk 0:02:58]} 4. Nf3 {[%clk 0:02:59]}  cxd4 {[%clk 0:02:56]} 5. Nxd4 {[%clk 0:02:58]}  Qc7 {[%clk 0:02:52]} 6. Bg2 {[%clk 0:02:55]}  Qxc4 {[%clk 0:02:49]} 7. O-O {[%clk 0:02:55]}  Nc6 {[%clk 0:02:49]} 8. Be3 {[%clk 0:02:50]}  Nxd4 {[%clk 0:02:43]} 9. Bxd4 {[%clk 0:02:50]}  e6 {[%clk 0:02:36]} 10. Nc3 {[%clk 0:02:46]}  Be7 {[%clk 0:02:32]} 11. Rc1 {[%clk 0:02:46]}  Qb4 {[%clk 0:02:29]} 12. a3 {[%clk 0:02:46]}  Qa5 {[%clk 0:02:25]} 13. Qd3 {[%clk 0:02:44]}  O-O {[%clk 0:02:20]} 14. e4 {[%clk 0:02:44]}  d6 {[%clk 0:02:17]} 15. b4 {[%clk 0:02:30]}  Qd8 {[%clk 0:02:11]} 16. Rfd1 {[%clk 0:02:22]}  Bd7 {[%clk 0:02:01]} 17. e5 {[%clk 0:02:22]}  dxe5 {[%clk 0:02:00]} 18. Bxe5 {[%clk 0:02:22]}  Bc6 {[%clk 0:02:00]} 19. Bxc6 {[%clk 0:02:21]}  bxc6 {[%clk 0:01:59]} 20. Qc4 {[%clk 0:02:20]}  Nd5 {[%clk 0:01:54]} 21. Qxc6 {[%clk 0:02:11]}  Rc8 {[%clk 0:01:38]} 22. Qxa6 {[%clk 0:02:11]}  Ra8 {[%clk 0:01:37]} 23. Qb7 {[%clk 0:02:05]}  Rxa3 {[%clk 0:01:33]} 24. Nxd5 {[%clk 0:02:06]}  exd5 {[%clk 0:01:32]} 25. Rxd5 {[%clk 0:02:06]}  Qe8 {[%clk 0:01:30]} 26. Bxg7 {[%clk 0:01:22]}  Kxg7 {[%clk 0:01:21]} 27. Re5 {[%clk 0:01:22]}  Qd8 {[%clk 0:00:57]} 28. Qxe7 {[%clk 0:01:17]}  Qxe7 {[%clk 0:00:56]} 29. Rxe7 {[%clk 0:01:17]}  Rb3 {[%clk 0:00:54]} 30. Rb7 {[%clk 0:01:16]}  Kg6 {[%clk 0:00:35]} 31. Rc6+ {[%clk 0:01:12]}  f6 {[%clk 0:00:34]} 32. Rcc7 {[%clk 0:01:12]}  h5 {[%clk 0:00:33]} 33. Rg7+ {[%clk 0:01:11]}  Kf5 {[%clk 0:00:25]} 34. Rb5+ {[%clk 0:01:11]}  Ke6 {[%clk 0:00:20]} 35. Rh7 {[%clk 0:01:11]}  Rd8 {[%clk 0:00:15]} 36. Rhxh5 {[%clk 0:01:09]}  Rd2 {[%clk 0:00:12]} 37. Rhf5 {[%clk 0:01:06]}  Rd4 {[%clk 0:00:06]} 38. Rf4 {[%clk 0:01:03]}  Rxf4 {[%clk 0:00:03]} 39. gxf4 {[%clk 0:01:03]}  Rf3 {[%clk 0:00:02]} 40. f5+ {[%clk 0:01:03]}  Kd6 {[%clk 0:00:02]} 41. Kg2 {[%clk 0:01:03]}  Rf4 {[%clk 0:00:02]} 42. Kg3 {[%clk 0:01:03]}  Rc4 {[%clk 0:00:02]} 43. h4 {[%clk 0:01:03]}  Ke7 {[%clk 0:00:01]} 44. Rb7+ {[%clk 0:00:57]} 1-0


[Site "https://www.chess.com"]

[Event "Titled Tuesday Blitz February 07 Late 2023"]
[White "TheKnightOfBosnia"]
[Black "Tanenbaum, Zachary"]
[BlackFideId "2060850"]
[WhiteElo "2526"]
[BlackElo "2261"]
[Result "0-1"]
[Round "08"]
[TimeControl "180+2"]
[Date "2023.02.07"]
[WhiteClock "0:00:04"]
[BlackClock "0:00:54"]

1. e4 {[%clk 0:03:00]}  e5 {[%clk 0:02:59]} 2. Nf3 {[%clk 0:03:01]}  Nc6 {[%clk 0:03:00]} 3. Bb5 {[%clk 0:03:00]}  a6 {[%clk 0:03:00]} 4. Ba4 {[%clk 0:03:01]}  d6 {[%clk 0:03:01]} 5. c4 {[%clk 0:02:59]}  Bg4 {[%clk 0:03:00]} 6. h3 {[%clk 0:02:58]}  Bxf3 {[%clk 0:03:01]} 7. Qxf3 {[%clk 0:02:57]}  Nf6 {[%clk 0:03:01]} 8. d3 {[%clk 0:02:54]}  Nd7 {[%clk 0:02:59]} 9. Nc3 {[%clk 0:02:53]}  Be7 {[%clk 0:02:57]} 10. Be3 {[%clk 0:02:47]}  O-O {[%clk 0:02:57]} 11. O-O {[%clk 0:02:43]}  Nd4 {[%clk 0:02:50]} 12. Bxd4 {[%clk 0:02:42]}  exd4 {[%clk 0:02:51]} 13. Nd5 {[%clk 0:02:25]}  c6 {[%clk 0:02:47]} 14. Nxe7+ {[%clk 0:02:21]}  Qxe7 {[%clk 0:02:48]} 15. b4 {[%clk 0:02:18]}  Qg5 {[%clk 0:02:26]} 16. Qe2 {[%clk 0:02:09]}  a5 {[%clk 0:02:16]} 17. a3 {[%clk 0:02:04]}  Rfe8 {[%clk 0:02:05]} 18. f4 {[%clk 0:02:00]}  Qg3 {[%clk 0:02:04]} 19. Rf3 {[%clk 0:01:59]}  Qh4 {[%clk 0:02:03]} 20. Rff1 {[%clk 0:01:27]}  axb4 {[%clk 0:01:51]} 21. axb4 {[%clk 0:01:27]}  Nb6 {[%clk 0:01:50]} 22. Qc2 {[%clk 0:01:02]}  Ra7 {[%clk 0:01:45]} 23. Kh2 {[%clk 0:00:59]}  Rea8 {[%clk 0:01:44]} 24. c5 {[%clk 0:00:44]}  Nxa4 {[%clk 0:01:34]} 25. cxd6 {[%clk 0:00:42]}  Nc3 {[%clk 0:01:31]} 26. Rxa7 {[%clk 0:00:41]}  Rxa7 {[%clk 0:01:32]} 27. e5 {[%clk 0:00:41]}  Ra2 {[%clk 0:01:24]} 28. Qb3 {[%clk 0:00:26]}  Rf2 {[%clk 0:01:18]} 29. Rxf2 {[%clk 0:00:19]}  Qxf2 {[%clk 0:01:18]} 30. d7 {[%clk 0:00:16]}  Qxf4+ {[%clk 0:01:18]} 31. Kh1 {[%clk 0:00:12]}  Qh4 {[%clk 0:01:04]} 32. e6 {[%clk 0:00:11]}  Qe7 {[%clk 0:00:56]} 33. exf7+ {[%clk 0:00:08]}  Kf8 {[%clk 0:00:56]} 34. b5 {[%clk 0:00:04]}  Qxd7 {[%clk 0:00:54]} 35. bxc6 {[%clk 0:00:03]}  bxc6 {[%clk 0:00:55]} 36. Qb8+ {[%clk 0:00:03]}  Kxf7 {[%clk 0:00:54]} 37. Qf4+ {[%clk 0:00:04]} 0-1


[Site "https://www.chess.com"]

[Event "Titled Tuesday Blitz February 07 Late 2023"]
[White "Vega Gutierrez, Sabrina"]
[Black "Tatarinov, Dmitry"]
[WhiteFideId "2219026"]
[BlackFideId "24160067"]
[WhiteElo "2377"]
[BlackElo "2310"]
[Result "0-1"]
[Round "08"]
[TimeControl "180+2"]
[Date "2023.02.07"]
[WhiteClock "0:00:01"]
[BlackClock "0:01:36"]

1. e4 {[%clk 0:03:00]}  d5 {[%clk 0:02:59]} 2. exd5 {[%clk 0:03:00]}  Qxd5 {[%clk 0:02:59]} 3. Nf3 {[%clk 0:03:01]}  Nc6 {[%clk 0:02:58]} 4. d4 {[%clk 0:02:58]}  Bg4 {[%clk 0:02:57]} 5. Be2 {[%clk 0:02:58]}  O-O-O {[%clk 0:02:56]} 6. c4 {[%clk 0:02:58]}  Qa5+ {[%clk 0:02:48]} 7. Bd2 {[%clk 0:02:58]}  Qb6 {[%clk 0:02:49]} 8. d5 {[%clk 0:02:52]}  Bxf3 {[%clk 0:02:42]} 9. Bxf3 {[%clk 0:02:26]}  Ne5 {[%clk 0:02:42]} 10. Be2 {[%clk 0:02:26]}  e6 {[%clk 0:02:40]} 11. Nc3 {[%clk 0:02:19]}  Nf6 {[%clk 0:02:38]} 12. Na4 {[%clk 0:01:24]}  Qd4 {[%clk 0:02:32]} 13. Bc3 {[%clk 0:01:08]}  Qe4 {[%clk 0:02:28]} 14. f3 {[%clk 0:00:58]}  Qf4 {[%clk 0:02:14]} 15. O-O {[%clk 0:00:47]}  exd5 {[%clk 0:02:13]} 16. c5 {[%clk 0:00:29]}  d4 {[%clk 0:02:11]} 17. Bd2 {[%clk 0:00:29]}  Qf5 {[%clk 0:02:10]} 18. f4 {[%clk 0:00:27]}  Nc6 {[%clk 0:02:08]} 19. b4 {[%clk 0:00:24]}  d3 {[%clk 0:02:08]} 20. Bf3 {[%clk 0:00:24]}  Nd4 {[%clk 0:02:06]} 21. Rc1 {[%clk 0:00:21]}  h5 {[%clk 0:02:06]} 22. Nc3 {[%clk 0:00:15]}  Ng4 {[%clk 0:02:02]} 23. h3 {[%clk 0:00:14]}  Nxf3+ {[%clk 0:02:02]} 24. Qxf3 {[%clk 0:00:14]}  Nf6 {[%clk 0:01:58]} 25. Rfe1 {[%clk 0:00:14]}  Kb8 {[%clk 0:01:55]} 26. Re5 {[%clk 0:00:14]}  Qd7 {[%clk 0:01:54]} 27. b5 {[%clk 0:00:14]}  Qd4+ {[%clk 0:01:49]} 28. Be3 {[%clk 0:00:14]}  d2 {[%clk 0:01:49]} 29. Rd1 {[%clk 0:00:02]}  Qxc3 {[%clk 0:01:49]} 30. b6 {[%clk 0:00:02]}  Nd5 {[%clk 0:01:42]} 31. Bxd2 {[%clk 0:00:01]}  Qxc5+ {[%clk 0:01:36]} 0-1


[Site "https://www.chess.com"]

[Event "Titled Tuesday Blitz February 07 Late 2023"]
[White "Starozhilov, Leonid"]
[Black "Danielyan, Vahe"]
[WhiteFideId "14106752"]
[BlackFideId "13304828"]
[WhiteElo "2313"]
[BlackElo "2346"]
[Result "0-1"]
[Round "08"]
[TimeControl "180+2"]
[Date "2023.02.07"]
[WhiteClock "0:00:02"]
[BlackClock "0:00:20"]

1. e4 {[%clk 0:03:00]}  c6 {[%clk 0:02:59]} 2. d3 {[%clk 0:03:00]}  d5 {[%clk 0:02:59]} 3. Nd2 {[%clk 0:03:01]}  e5 {[%clk 0:02:58]} 4. Ngf3 {[%clk 0:03:01]}  Bd6 {[%clk 0:02:58]} 5. d4 {[%clk 0:03:01]}  exd4 {[%clk 0:02:57]} 6. exd5 {[%clk 0:03:02]}  Nf6 {[%clk 0:02:55]} 7. dxc6 {[%clk 0:03:02]}  Nxc6 {[%clk 0:02:56]} 8. Nb3 {[%clk 0:03:03]}  Bg4 {[%clk 0:02:56]} 9. Be2 {[%clk 0:03:03]}  O-O {[%clk 0:02:55]} 10. O-O {[%clk 0:03:01]}  Re8 {[%clk 0:02:51]} 11. h3 {[%clk 0:02:49]}  Bh5 {[%clk 0:02:51]} 12. Nfxd4 {[%clk 0:01:57]}  Rxe2 {[%clk 0:02:39]} 13. Nxe2 {[%clk 0:01:47]}  Qc7 {[%clk 0:02:39]} 14. f3 {[%clk 0:01:19]}  Rd8 {[%clk 0:02:35]} 15. Kh1 {[%clk 0:01:03]}  Bb4 {[%clk 0:02:14]} 16. Ned4 {[%clk 0:00:53]}  Bg6 {[%clk 0:02:06]} 17. Bg5 {[%clk 0:00:41]}  Nxd4 {[%clk 0:02:03]} 18. Nxd4 {[%clk 0:00:41]}  Qe5 {[%clk 0:02:01]} 19. Bxf6 {[%clk 0:00:39]}  Qxf6 {[%clk 0:01:43]} 20. c3 {[%clk 0:00:39]}  Bc5 {[%clk 0:01:41]} 21. Qe2 {[%clk 0:00:36]}  h5 {[%clk 0:01:38]} 22. Rfe1 {[%clk 0:00:31]}  Qh4 {[%clk 0:01:32]} 23. f4 {[%clk 0:00:08]}  Qxf4 {[%clk 0:01:30]} 24. Qf3 {[%clk 0:00:08]}  Rxd4 {[%clk 0:01:26]} 25. cxd4 {[%clk 0:00:06]}  Qxd4 {[%clk 0:01:26]} 26. Rad1 {[%clk 0:00:05]}  Qh4 {[%clk 0:01:00]} 27. Re8+ {[%clk 0:00:04]}  Kh7 {[%clk 0:01:00]} 28. Rdd8 {[%clk 0:00:04]}  Bc2 {[%clk 0:00:20]} 29. Rh8+ {[%clk 0:00:02]}  Kg6 {[%clk 0:00:20]} 0-1


[Site "https://www.chess.com"]

[Event "Titled Tuesday Blitz February 07 Late 2023"]
[White "Buchenau, Frank"]
[Black "Di Berardino, Diego Rafael"]
[WhiteFideId "4604350"]
[BlackFideId "2105446"]
[WhiteElo "2222"]
[BlackElo "2479"]
[Result "0-1"]
[Round "08"]
[TimeControl "180+2"]
[Date "2023.02.07"]
[WhiteClock "0:00:41"]
[BlackClock "0:01:27"]

1. e4 {[%clk 0:03:00]}  c5 {[%clk 0:03:00]} 2. Nf3 {[%clk 0:03:00]}  b6 {[%clk 0:03:00]} 3. d4 {[%clk 0:02:56]}  cxd4 {[%clk 0:03:01]} 4. Nxd4 {[%clk 0:02:56]}  Bb7 {[%clk 0:03:02]} 5. Nc3 {[%clk 0:02:55]}  Nf6 {[%clk 0:03:02]} 6. e5 {[%clk 0:02:44]}  Nd5 {[%clk 0:03:02]} 7. Nxd5 {[%clk 0:02:39]}  Bxd5 {[%clk 0:03:03]} 8. Nf5 {[%clk 0:02:03]}  e6 {[%clk 0:03:02]} 9. Nd6+ {[%clk 0:01:54]}  Bxd6 {[%clk 0:03:02]} 10. exd6 {[%clk 0:01:55]}  Qf6 {[%clk 0:02:49]} 11. Be3 {[%clk 0:01:45]}  Qxb2 {[%clk 0:02:21]} 12. Bd4 {[%clk 0:01:30]}  Qb4+ {[%clk 0:02:21]} 13. c3 {[%clk 0:01:29]}  Qxd6 {[%clk 0:02:21]} 14. Bxg7 {[%clk 0:01:25]}  Rg8 {[%clk 0:02:21]} 15. Qd4 {[%clk 0:01:11]}  Nc6 {[%clk 0:02:15]} 16. Qf6 {[%clk 0:01:11]}  Qe7 {[%clk 0:01:56]} 17. c4 {[%clk 0:00:53]}  Qb4+ {[%clk 0:01:42]} 18. Kd1 {[%clk 0:00:50]}  Bxc4 {[%clk 0:01:27]} 19. Bxc4 {[%clk 0:00:44]}  Qxc4 {[%clk 0:01:27]} 20. Rc1 {[%clk 0:00:41]}  Qg4+ {[%clk 0:01:27]} 0-1


[Site "https://www.chess.com"]

[Event "Titled Tuesday Blitz February 07 Late 2023"]
[White "Koc, Przemyslaw"]
[Black "Rottenwohrer Suarez, Juan"]
[WhiteFideId "1109081"]
[BlackFideId "32068182"]
[WhiteElo "2346"]
[BlackElo "2265"]
[Result "0-1"]
[Round "08"]
[TimeControl "180+2"]
[Date "2023.02.07"]
[WhiteClock "0:00:23"]
[BlackClock "0:00:01"]

1. d4 {[%clk 0:03:00]}  Nf6 {[%clk 0:02:58]} 2. Bg5 {[%clk 0:03:01]}  d5 {[%clk 0:02:57]} 3. Nd2 {[%clk 0:02:59]}  c5 {[%clk 0:02:54]} 4. e3 {[%clk 0:02:58]}  Nc6 {[%clk 0:02:51]} 5. Ngf3 {[%clk 0:02:56]}  cxd4 {[%clk 0:02:48]} 6. exd4 {[%clk 0:02:56]}  Qb6 {[%clk 0:02:42]} 7. Bxf6 {[%clk 0:02:54]}  gxf6 {[%clk 0:02:36]} 8. Nb3 {[%clk 0:02:49]}  a5 {[%clk 0:02:35]} 9. a4 {[%clk 0:02:49]}  Bg4 {[%clk 0:02:25]} 10. Bb5 {[%clk 0:02:47]}  e6 {[%clk 0:02:25]} 11. h3 {[%clk 0:02:44]}  Bh5 {[%clk 0:02:23]} 12. g4 {[%clk 0:02:41]}  Bg6 {[%clk 0:02:23]} 13. Nh4 {[%clk 0:02:41]}  Be4 {[%clk 0:02:20]} 14. f3 {[%clk 0:02:39]}  Bg6 {[%clk 0:02:20]} 15. O-O {[%clk 0:02:33]}  Bd6 {[%clk 0:02:19]} 16. Kg2 {[%clk 0:02:33]}  O-O-O {[%clk 0:02:14]} 17. Qd2 {[%clk 0:02:26]}  h5 {[%clk 0:01:57]} 18. Nxg6 {[%clk 0:02:23]}  fxg6 {[%clk 0:01:58]} 19. Bxc6 {[%clk 0:02:23]}  bxc6 {[%clk 0:01:58]} 20. Qxa5 {[%clk 0:02:22]}  Qxa5 {[%clk 0:01:58]} 21. Nxa5 {[%clk 0:02:22]}  hxg4 {[%clk 0:01:58]} 22. fxg4 {[%clk 0:02:22]}  Rdf8 {[%clk 0:01:09]} 23. Nxc6 {[%clk 0:02:17]}  Kc7 {[%clk 0:01:09]} 24. Na5 {[%clk 0:02:14]}  f5 {[%clk 0:01:10]} 25. gxf5 {[%clk 0:02:07]}  gxf5 {[%clk 0:01:08]} 26. Rf3 {[%clk 0:02:07]}  Rh4 {[%clk 0:01:00]} 27. Nb3 {[%clk 0:02:03]}  Rg8+ {[%clk 0:00:53]} 28. Kf2 {[%clk 0:02:03]}  Rgh8 {[%clk 0:00:52]} 29. Rh1 {[%clk 0:02:02]}  Kb6 {[%clk 0:00:43]} 30. c3 {[%clk 0:02:01]}  Ra8 {[%clk 0:00:40]} 31. a5+ {[%clk 0:01:52]}  Kb5 {[%clk 0:00:40]} 32. Re1 {[%clk 0:01:48]}  Rh6 {[%clk 0:00:39]} 33. Rfe3 {[%clk 0:01:42]}  Re8 {[%clk 0:00:36]} 34. Ra1 {[%clk 0:01:39]}  f4 {[%clk 0:00:32]} 35. Rf3 {[%clk 0:01:37]}  Ra8 {[%clk 0:00:30]} 36. Nc1 {[%clk 0:01:33]}  Rxa5 {[%clk 0:00:28]} 37. Rxa5+ {[%clk 0:01:31]}  Kxa5 {[%clk 0:00:29]} 38. Nd3 {[%clk 0:01:32]}  Rh4 {[%clk 0:00:26]} 39. b3 {[%clk 0:01:28]}  Kb5 {[%clk 0:00:27]} 40. Ne1 {[%clk 0:01:20]}  Rh8 {[%clk 0:00:24]} 41. Ng2 {[%clk 0:01:18]}  Rc8 {[%clk 0:00:20]} 42. h4 {[%clk 0:01:19]}  Rc7 {[%clk 0:00:19]} 43. h5 {[%clk 0:01:19]}  Rh7 {[%clk 0:00:18]} 44. Rh3 {[%clk 0:01:19]}  Kc6 {[%clk 0:00:17]} 45. Kf3 {[%clk 0:01:18]}  e5 {[%clk 0:00:14]} 46. dxe5 {[%clk 0:01:17]}  Bxe5 {[%clk 0:00:15]} 47. Kg4 {[%clk 0:01:18]}  Rb7 {[%clk 0:00:10]} 48. b4 {[%clk 0:01:15]}  d4 {[%clk 0:00:10]} 49. cxd4 {[%clk 0:01:11]}  Bxd4 {[%clk 0:00:11]} 50. Nxf4 {[%clk 0:01:07]}  Rxb4 {[%clk 0:00:11]} 51. h6 {[%clk 0:01:07]}  Be5 {[%clk 0:00:03]} 52. Rf3 {[%clk 0:01:07]}  Kd6 {[%clk 0:00:02]} 53. Kg5 {[%clk 0:01:06]}  Rb8 {[%clk 0:00:02]} 54. Ng6 {[%clk 0:01:05]}  Bd4 {[%clk 0:00:02]} 55. h7 {[%clk 0:01:00]}  Kd5 {[%clk 0:00:02]} 56. Kh6 {[%clk 0:00:57]}  Rb1 {[%clk 0:00:02]} 57. Rf5+ {[%clk 0:00:54]}  Ke4 {[%clk 0:00:02]} 58. Rf4+ {[%clk 0:00:48]}  Ke3 {[%clk 0:00:02]} 59. Rh4 {[%clk 0:00:48]}  Bf6 {[%clk 0:00:01]} 60. Rh3+ {[%clk 0:00:40]}  Ke4 {[%clk 0:00:02]} 61. Nf8 {[%clk 0:00:39]}  Rg1 {[%clk 0:00:02]} 62. Nd7 {[%clk 0:00:37]}  Bg7+ {[%clk 0:00:02]} 63. Kh5 {[%clk 0:00:37]}  Bd4 {[%clk 0:00:02]} 64. Rh4+ {[%clk 0:00:33]}  Ke3 {[%clk 0:00:03]} 65. Nf8 {[%clk 0:00:31]}  Bf6 {[%clk 0:00:02]} 66. Ng6 {[%clk 0:00:31]}  Rg5+ {[%clk 0:00:01]} 67. Kh6 {[%clk 0:00:31]}  Rg1 {[%clk 0:00:01]} 68. Rh5 {[%clk 0:00:27]}  Ke4 {[%clk 0:00:01]} 69. Nh4 {[%clk 0:00:23]}  Bg7# {[%clk 0:00:01]} 0-1


[Site "https://www.chess.com"]

[Event "Titled Tuesday Blitz February 07 Late 2023"]
[White "Aggelis, Nikolaos"]
[Black "Van Dael, Siem"]
[WhiteFideId "4213220"]
[BlackFideId "1049771"]
[WhiteElo "2270"]
[BlackElo "2319"]
[Result "1-0"]
[Round "08"]
[TimeControl "180+2"]
[Date "2023.02.07"]
[WhiteClock "0:00:23"]
[BlackClock "0:00:04"]

1. d4 {[%clk 0:02:57]}  Nf6 {[%clk 0:02:59]} 2. g3 {[%clk 0:02:56]}  g6 {[%clk 0:02:58]} 3. Bg2 {[%clk 0:02:56]}  Bg7 {[%clk 0:02:59]} 4. Nf3 {[%clk 0:02:57]}  O-O {[%clk 0:02:59]} 5. O-O {[%clk 0:02:58]}  d6 {[%clk 0:02:59]} 6. b3 {[%clk 0:02:59]}  Ne4 {[%clk 0:02:59]} 7. Bb2 {[%clk 0:02:58]}  c5 {[%clk 0:02:59]} 8. Nbd2 {[%clk 0:02:58]}  f5 {[%clk 0:03:00]} 9. Nxe4 {[%clk 0:02:54]}  fxe4 {[%clk 0:03:00]} 10. Nd2 {[%clk 0:02:42]}  cxd4 {[%clk 0:02:50]} 11. Nxe4 {[%clk 0:02:38]}  Nc6 {[%clk 0:02:50]} 12. Ng5 {[%clk 0:02:31]}  e5 {[%clk 0:02:49]} 13. Bd5+ {[%clk 0:02:27]}  Kh8 {[%clk 0:02:49]} 14. Nf7+ {[%clk 0:02:28]}  Rxf7 {[%clk 0:02:49]} 15. Bxf7 {[%clk 0:02:27]}  Bh3 {[%clk 0:02:44]} 16. Re1 {[%clk 0:02:22]}  Qf6 {[%clk 0:02:44]} 17. Bd5 {[%clk 0:02:20]}  Rf8 {[%clk 0:02:44]} 18. f3 {[%clk 0:02:10]}  Ne7 {[%clk 0:02:29]} 19. Bxb7 {[%clk 0:02:05]}  Nf5 {[%clk 0:02:30]} 20. Bc1 {[%clk 0:01:57]}  g5 {[%clk 0:01:59]} 21. Qd3 {[%clk 0:01:35]}  g4 {[%clk 0:01:55]} 22. Bd2 {[%clk 0:01:32]}  Bh6 {[%clk 0:01:27]} 23. Bxh6 {[%clk 0:01:20]}  Qxh6 {[%clk 0:01:27]} 24. fxg4 {[%clk 0:01:01]}  Ne3 {[%clk 0:01:11]} 25. c3 {[%clk 0:00:50]}  Nxg4 {[%clk 0:00:49]} 26. Qe4 {[%clk 0:00:47]}  Nxh2 {[%clk 0:00:40]} 27. Kxh2 {[%clk 0:00:35]}  Bg4+ {[%clk 0:00:16]} 28. Kg1 {[%clk 0:00:33]}  Qh3 {[%clk 0:00:13]} 29. Qg2 {[%clk 0:00:33]}  Qh6 {[%clk 0:00:13]} 30. Rf1 {[%clk 0:00:30]}  Qe3+ {[%clk 0:00:13]} 31. Kh1 {[%clk 0:00:29]}  Rb8 {[%clk 0:00:12]} 32. Bf3 {[%clk 0:00:27]}  Bf5 {[%clk 0:00:06]} 33. cxd4 {[%clk 0:00:26]}  exd4 {[%clk 0:00:06]} 34. Qf2 {[%clk 0:00:23]}  Qg5 {[%clk 0:00:04]} 35. Qxd4+ {[%clk 0:00:23]} 1-0


[Site "https://www.chess.com"]